fUST/lending_fUST_20250111
["ID","MTS","AMOUNT","RATE_DAILY","PERIOD"]
[348479128,1736559038762,-500.0,0.00021917,3]
[348479129,1736559038772,-500.0,0.00021917,3]
[348479130,1736559038782,-500.0,0.00021917,3]
[348479131,1736559038791,-500.0,0.00021917,3]
[348479132,1736559038801,-500.0,0.00021917,3]
[348479133,1736559038810,-500.0,0.00021917,3]
[348479134,1736559038820,-500.0,0.00021917,3]
[348479135,1736559038829,-500.0,0.00021917,3]
[348479136,1736559038838,-500.0,0.00021917,3]
[348479137,1736559038847,-500.0,0.00021917,3]
[348479138,1736559038857,-500.0,0.00021917,3]
[348479139,1736559038866,-500.0,0.00021917,3]
[348479140,1736559038876,-500.0,0.00021917,3]
[348479141,1736559038886,-500.0,0.00021917,3]
[348479142,1736559038895,-500.0,0.00021917,3]
[348479143,1736559038904,-500.0,0.00021917,3]
[348479144,1736559038914,-500.0,0.00021917,3]
[348479145,1736559038923,-500.0,0.00021917,3]
[348479146,1736559038932,-500.0,0.00021917,3]
[348479147,1736559038942,-483.38939409,0.00021917,3]
[348479148,1736559038951,-500.0,0.00021917,3]
[348479149,1736559038960,-500.0,0.00021917,3]
[348479150,1736559038970,-3899.57,0.00021917,3]
[348479151,1736559038979,-500.0,0.00021917,3]
[348479152,1736559038988,-500.0,0.00021917,3]
[348479153,1736559038998,-500.0,0.00021917,3]
[348479154,1736559039007,-500.0,0.00021917,3]
[348479155,1736559039016,-626.38,0.00021917,3]
[348479156,1736559039025,-500.0,0.00021917,3]
[348479157,1736559039034,-500.0,0.00021917,3]
[348479158,1736559039044,-500.0,0.00021917,3]
[348479159,1736559039053,-500.0,0.00021917,3]
[348479160,1736559039063,-646.48,0.00021917,3]
[348479161,1736559039072,-500.0,0.00021917,3]
[348479162,1736559039082,-500.0,0.00021917,3]
[348479163,1736559039091,-564.71,0.00021917,3]
[348479164,1736559039100,-3427.56,0.00021917,3]
[348479165,1736559039110,-500.0,0.00021917,3]
[348479166,1736559039119,-500.0,0.00021917,3]
[348479167,1736559039129,-500.0,0.00021917,3]
[348479168,1736559039138,-736.28,0.00021917,3]
[348479169,1736559039148,-500.0,0.00021917,3]
[348479170,1736559039157,-500.0,0.00021917,3]
[348479171,1736559039167,-500.0,0.00021917,3]
[348479172,1736559039176,-500.0,0.00021917,2]
[348479173,1736559039185,-500.0,0.00021917,3]
[348479174,1736559039194,-500.0,0.00021917,3]
[348479175,1736559039203,-500.0,0.00021917,3]
[348479176,1736559039213,-719.7,0.00021917,3]
[348479177,1736559039223,-2016.84,0.00021917,3]
[348479178,1736559039233,-500.0,0.00021917,3]
[348479179,1736559039243,-500.0,0.00021917,3]
[348479180,1736559039253,-500.0,0.00021917,3]
[348479181,1736559039262,-500.0,0.00021917,3]
[348479182,1736559039272,-500.0,0.00021917,3]
[348479183,1736559039281,-500.0,0.00021917,3]
[348479184,1736559039291,-500.0,0.00021917,3]
[348479185,1736559039300,-500.0,0.00021917,3]
[348479186,1736559039313,-500.0,0.00021917,3]
[348479187,1736559039323,-500.0,0.00021917,2]
[348479188,1736559039333,-500.0,0.00021917,3]
[348479189,1736559039342,-500.0,0.00021917,3]
[348479190,1736559039353,-500.0,0.00021917,3]
[348479191,1736559039362,-500.0,0.00021917,3]
[348479192,1736559039372,-500.0,0.00021917,3]
[348479193,1736559039381,-500.0,0.00021917,3]
[348479194,1736559039395,-500.0,0.00021917,3]
[348479195,1736559039405,-500.0,0.00021917,3]
[348479196,1736559039415,-500.0,0.00021917,3]
[348479197,1736559039425,-4046.18,0.00021917,3]
[348479198,1736559039436,-500.0,0.00021917,3]
[348479199,1736559039446,-500.0,0.00021917,3]
[348479200,1736559039456,-500.0,0.00021917,3]
[348479201,1736559039466,-500.0,0.00021917,3]
[348479202,1736559039476,-500.0,0.00021917,3]
[348479203,1736559039488,-500.0,0.00021917,3]
[348479204,1736559039497,-695.3,0.00021917,3]
[348479205,1736559039507,-1207.68,0.00021917,3]
[348479206,1736559039517,-500.0,0.00021917,3]
[348479207,1736559039527,-500.0,0.00021917,3]
[348479208,1736559039537,-481.62727348,0.00021917,3]
[348479209,1736559039546,-500.0,0.00021917,3]
[348479210,1736559039555,-500.0,0.00021917,3]
[348479211,1736559039565,-500.0,0.00021917,3]
[348479212,1736559039575,-1525.43,0.00021917,3]
[348479213,1736559039585,-797.96,0.00021917,3]
[348479214,1736559039594,-500.0,0.00021917,3]
[348479215,1736559039603,-500.0,0.00021917,3]
[348479216,1736559039613,-546.84,0.00021917,3]
[348479218,1736559039622,-500.0,0.00021917,3]
[348479219,1736559039632,-500.0,0.00021917,3]
[348479220,1736559039642,-500.0,0.00021917,3]
[348479222,1736559039651,-500.0,0.00021917,3]
[348479224,1736559039662,-1387.17,0.00021917,3]
[348479225,1736559039672,-523.74,0.00021917,3]
[348479226,1736559039682,-500.0,0.00021917,3]
[348479227,1736559039691,-500.0,0.00021917,3]
[348479228,1736559039701,-500.0,0.00021917,3]
[348479229,1736559039711,-500.0,0.00021917,3]
[348479230,1736559039721,-751.75,0.00021917,3]
[348479231,1736559039731,-1376.16,0.00021917,3]
[348479232,1736559039741,-14554.05,0.00021917,3]
[348479233,1736559039751,-500.0,0.00021917,3]
[348479234,1736559039760,-443.01010574,0.00021917,3]
[348479235,1736559039770,-500.0,0.00021917,3]
[348479236,1736559039780,-504.51319957,0.00021917,3]
[348479237,1736559039790,-505.77041749,0.00021917,3]
[348479238,1736559039800,-500.0,0.00021917,3]
[348479239,1736559039810,-507.05679081,0.00021917,3]
[348479240,1736559039820,-500.0,0.00021917,3]
[348479241,1736559039830,-580.48,0.00021917,3]
[348479242,1736559039840,-500.0,0.00021917,3]
[348479243,1736559039850,-694.59,0.00021917,3]
[348479244,1736559039860,-500.0,0.00021917,3]
[348479245,1736559039870,-721.64,0.000221,2]
[348479246,1736559039880,-214.7830993,0.000221,2]
[348479247,1736559039890,-153.0,0.000221,2]
[348479248,1736559039912,-214.7830993,0.000221,2]
[348479249,1736559039923,-500.0,0.0002219,3]
[348479250,1736559039933,-500.0,0.0002219,3]
[348479251,1736559039943,-500.0,0.00022191,3]
[348479252,1736559039953,-500.0,0.00022191,3]
[348479253,1736559039962,-681.49,0.00022191,3]
[348479254,1736559039973,-423.70473648,0.00022191,3]
[348479255,1736559039983,-500.0,0.00022191,3]
[348479256,1736559039994,-568.15,0.00022191,3]
[348479257,1736559040004,-500.0,0.00022191,3]
[348479258,1736559040015,-255.69774438,0.00022191,3]
[348479259,1736559040025,-544.1,0.00022191,3]
[348479260,1736559040036,-502.73,0.00022191,3]
[348479261,1736559040046,-500.0,0.00022191,3]
[348479262,1736559040056,-500.0,0.00022191,3]
[348479263,1736559040066,-500.0,0.00022191,3]
[348479264,1736559040076,-500.0,0.00022191,3]
[348479265,1736559040086,-500.0,0.00022191,3]
[348479266,1736559040096,-500.0,0.00022191,3]
[348479267,1736559040106,-500.0,0.00022191,3]
[348479268,1736559040116,-500.0,0.00022191,3]
[348479269,1736559040127,-500.0,0.00022191,3]
[348479270,1736559040137,-511.83891448,0.00022191,3]
[348479271,1736559040147,-500.0,0.00022191,3]
[348479272,1736559040159,-500.0,0.00022191,3]
[348479274,1736559040170,-3899.57,0.00022191,3]
[348479275,1736559040180,-500.0,0.00022191,3]
[348479277,1736559040190,-626.38,0.00022191,3]
[348479278,1736559040200,-500.0,0.00022191,3]
[348479279,1736559040211,-500.0,0.00022191,3]
[348479280,1736559040221,-646.48,0.00022191,3]
[348479281,1736559040231,-500.0,0.00022191,3]
[348479282,1736559040241,-564.71,0.00022191,3]
[348479283,1736559040251,-3427.56,0.00022191,3]
[348479284,1736559040261,-500.0,0.00022191,3]
[348479285,1736559040270,-500.0,0.00022191,3]
[348479286,1736559040280,-736.28,0.00022191,3]
[348479287,1736559040289,-500.0,0.00022191,3]
[348479288,1736559040299,-500.0,0.00022191,2]
[348479289,1736559040309,-500.0,0.00022191,3]
[348479290,1736559040321,-623.25,0.00022191,3]
[348479291,1736559040331,-500.0,0.00022191,3]
[348479292,1736559040344,-719.7,0.00022191,3]
[348479293,1736559040355,-2016.84,0.00022191,3]
[348479294,1736559040365,-500.0,0.00022191,3]
[348479295,1736559040374,-500.0,0.00022191,2]
[348479296,1736559040384,-500.0,0.00022191,3]
[348479297,1736559040394,-500.0,0.00022191,3]
[348479298,1736559040404,-500.0,0.00022191,3]
[348479299,1736559040417,-500.0,0.00022191,3]
[348479301,1736559040427,-4046.18,0.00022191,3]
[348479302,1736559040436,-500.0,0.00022191,3]
[348479303,1736559040445,-500.0,0.00022191,3]
[348479304,1736559040455,-500.0,0.00022191,3]
[348479305,1736559040464,-695.3,0.00022191,3]
[348479306,1736559040474,-1207.68,0.00022191,3]
[348479307,1736559040484,-500.0,0.00022191,3]
[348479308,1736559040493,-179.75,0.00022191,3]
[348479309,1736559040503,-1525.43,0.00022191,3]
[348479310,1736559040512,-797.96,0.00022191,3]
[348479311,1736559040521,-600.07,0.00022191,3]
[348479312,1736559040531,-546.84,0.00022191,3]
[348479313,1736559040540,-500.0,0.00022191,3]
[348479314,1736559040550,-1387.17,0.00022191,3]
[348479315,1736559040559,-523.74,0.00022191,3]
[348479316,1736559040569,-500.0,0.00022191,3]
[348479317,1736559040578,-500.0,0.00022191,3]
[348479318,1736559040588,-500.0,0.00022191,3]
[348479319,1736559040598,-500.0,0.00022191,3]
[348479320,1736559040607,-751.75,0.00022191,3]
[348479321,1736559040617,-1376.16,0.00022191,3]
[348479322,1736559040626,-14554.05,0.00022191,3]
[348479323,1736559040636,-508.55555303,0.00022191,3]
[348479324,1736559040645,-509.23232795,0.00022191,3]
[348479325,1736559040654,-500.0,0.00022191,3]
[348479326,1736559040666,-500.0,0.00022191,3]
[348479327,1736559040675,-580.48,0.00022191,3]
[348479328,1736559040684,-151.0,0.00022191,7]
[348479329,1736559040694,-510.23845924,0.00022191,3]
[348479330,1736559040703,-694.59,0.00022191,3]
[348479331,1736559040712,-218.4061689,0.000222,2]
[348479332,1736559040721,-154.6734645,0.000222,2]
[348479333,1736559040731,-777.0,0.000223,2]
[348479334,1736559040740,-2079.0,0.00022336,2]
[348479335,1736559040750,-535.0,0.00022336,2]
[348479336,1736559040759,-2289.0,0.00022336,2]
[348479337,1736559040768,-12500.0,0.000224,2]
[348479338,1736559040778,-152.25168861,0.00022464,2]
[348479339,1736559040787,-500.0,0.00022464,3]
[348479340,1736559040797,-500.0,0.00022465,3]
[348479341,1736559040806,-500.0,0.00022465,3]
[348479342,1736559040816,-681.49,0.00022465,3]
[348479343,1736559040825,-500.0,0.00022465,3]
[348479344,1736559040835,-568.15,0.00022465,3]
[348479345,1736559040844,-500.0,0.00022465,3]
[348479346,1736559040853,-544.1,0.00022465,3]
[348479347,1736559040862,-502.73,0.00022465,3]
[348479348,1736559040873,-500.0,0.00022465,3]
[348479349,1736559040883,-500.0,0.00022465,3]
[348479350,1736559040893,-500.0,0.00022465,3]
[348479351,1736559040902,-500.0,0.00022465,3]
[348479352,1736559040913,-500.0,0.00022465,3]
[348479353,1736559040923,-500.0,0.00022465,3]
[348479354,1736559040933,-500.0,0.00022465,3]
[348479355,1736559040943,-500.0,0.00022465,3]
[348479356,1736559040952,-500.0,0.00022465,3]
[348479357,1736559040962,-166.3089155,0.00022465,3]
[348479358,1736559040972,-3899.57,0.00022465,3]
[348479359,1736559040981,-500.0,0.00022465,3]
[348479360,1736559040991,-626.38,0.00022465,3]
[348479361,1736559041000,-646.48,0.00022465,3]
[348479362,1736559041010,-564.71,0.00022465,3]
[348479363,1736559041177,-3427.56,0.00022465,3]
[348479364,1736559041188,-500.0,0.00022465,3]
[348479365,1736559041197,-736.28,0.00022465,3]
[348479366,1736559041206,-500.0,0.00022465,2]
[348479367,1736559041216,-373.32627796,0.00022465,3]
[348479368,1736559041225,-719.7,0.00022465,3]
[348479369,1736559041235,-2016.84,0.00022465,3]
[348479370,1736559041244,-500.0,0.00022465,3]
[348479371,1736559041253,-500.0,0.00022465,2]
[348479372,1736559041262,-500.0,0.00022465,3]
[348479373,1736559041272,-500.0,0.00022465,3]
[348479374,1736559041282,-4046.18,0.00022465,3]
[348479375,1736559041291,-500.0,0.00022465,3]
[348479376,1736559041301,-500.0,0.00022465,3]
[348479377,1736559041314,-500.0,0.00022465,3]
[348479378,1736559041324,-695.3,0.00022465,3]
[348479379,1736559041333,-1207.68,0.00022465,3]
[348479380,1736559041343,-1525.43,0.00022465,3]
[348479381,1736559041353,-797.96,0.00022465,3]
[348479382,1736559041367,-546.84,0.00022465,3]
[348479383,1736559041376,-500.0,0.00022465,3]
[348479384,1736559041387,-1387.17,0.00022465,3]
[348479385,1736559041396,-523.74,0.00022465,3]
[348479386,1736559041405,-500.0,0.00022465,3]
[348479387,1736559041416,-450.2668425,0.00022465,3]
[348479388,1736559041425,-500.0,0.00022465,3]
[348479389,1736559041434,-500.0,0.00022465,3]
[348479390,1736559041444,-751.75,0.00022465,3]
[348479391,1736559041453,-1376.16,0.00022465,3]
[348479392,1736559041462,-14554.05,0.00022465,3]
[348479393,1736559041472,-500.0,0.00022465,3]
[348479394,1736559041481,-500.0,0.00022465,3]
[348479395,1736559041490,-580.48,0.00022465,3]
[348479396,1736559041499,-226.386028,0.00022465,7]
[348479397,1736559041508,-694.59,0.00022465,3]
[348479398,1736559041518,-500.0,0.00022473,2]
[348479399,1736559041527,-153.0,0.00022493,2]
[348479400,1736559041537,-19665.03564135,0.000225,5]
[348479401,1736559041546,-6968.47063866,0.000225,5]
[348479402,1736559041555,-639873.68951217,0.000225,5]
[348479403,1736559041659,-323557.41513596,0.000225,5]
[348479404,1736559041672,-931.66,0.000225,5]
[348479405,1736559041683,-3940.75153283,0.000225,5]
[348479406,1736559041695,-334.54512468,0.000225,5]
[348479407,1736559041795,-513.52885331,0.00021917,3]
[348479408,1736559041805,-507.42237619,0.00021917,3]
[348479409,1736559041814,-500.0,0.00022191,3]
[348479410,1736559041825,-500.0,0.00022465,3]
[348479411,1736559041835,-202630.11479214,0.000225,5]
[348479412,1736559041846,-74325.74155325,0.000225,5]
[348479413,1736559041862,-75196.68126963,0.000225,5]
[348479414,1736559041873,-158472.68153226,0.000225,5]
[348479478,1736559046195,-500.0,0.00021916,2]
[348479480,1736559046205,-500.0,0.00021916,2]
[348479481,1736559046215,-551.44,0.00021917,3]
[348479482,1736559046225,-500.0,0.00021973,2]
[348479483,1736559046235,-213.7109959,0.000221,2]
[348479484,1736559046244,-551.44,0.00022191,3]
[348479485,1736559046255,-151.0,0.000224,7]
[348479486,1736559046265,-551.44,0.00022465,3]
[348479487,1736559046275,-151.0,0.00022465,7]
[348479488,1736559046285,-10516.14060613,0.000225,5]
[348479489,1736559046297,-2566.11247282,0.000225,5]
[348479490,1736559046308,-347.0,0.000225,5]
[348479492,1736559046322,-894.242857,0.000225,5]
[348479493,1736559046333,-936.30009,0.000225,5]
[348479494,1736559159210,202.71,0.000207,120]
[348479496,1736559403890,157.997115,0.00013973,2]
[348479497,1736559471273,306.97242293,0.00019,2]
[348479498,1736559702423,45160.52560325,0.0002,30]
[348479511,1736560232837,-225.05090305,0.000189,2]
[348479512,1736560232847,-300.0,0.00019999,2]
[348479514,1736560232857,-1341.44909695,0.0002,30]
[348479515,1736560232869,-3909.16840732,0.0002,30]
[348479516,1736560232880,-1227.72478024,0.0002,30]
[348479517,1736560232891,-343.55762178,0.0002,30]
[348479518,1736560232903,-462.228,0.0002,30]
[348479555,1736560238385,-12125.57513236,0.0002,30]
[348479556,1736560238395,-268.7752581,0.00020598,2]
[348479558,1736560238405,-168.0197216,0.00020657,2]
[348479560,1736560238415,-592.396,0.0002137,2]
[348479562,1736560238424,-420.0,0.00021777,2]
[348479564,1736560238434,-177.05779559,0.00021817,2]
[348479566,1736560238443,-154.25,0.00021916,2]
[348479568,1736560238454,-500.0,0.00021916,2]
[348479570,1736560238463,-500.0,0.00021916,2]
[348479572,1736560238472,-500.0,0.00021916,2]
[348479574,1736560238483,-257.79907925,0.00021916,2]
[348479576,1736560238493,-182.73027831,0.00021916,2]
[348479578,1736560238503,-171.28836458,0.00021916,2]
[348479580,1736560238513,-509.9371551,0.00021916,2]
[348479582,1736560238522,-508.59384254,0.00021916,7]
[348479585,1736560238536,-150.01683452,0.00021917,3]
[348479587,1736560238546,-508.28243589,0.00021917,3]
[348479589,1736560238555,-512.35792268,0.00021917,3]
[348479591,1736560238564,-514.75535335,0.00021917,3]
[348479593,1736560238574,-510.49388199,0.00021917,3]
[348479596,1736560238583,-505.23101079,0.00021917,3]
[348479598,1736560238592,-505.0484343,0.00021917,3]
[348479600,1736560238601,-506.22501914,0.00021917,3]
[348479602,1736560238611,-508.29529949,0.00021917,3]
[348479604,1736560238620,-505.9749425,0.00021917,3]
[348479605,1736560238630,-528.13941107,0.00021917,3]
[348479607,1736560238639,-506.5961109,0.00021917,3]
[348479609,1736560238649,-505.38156155,0.00021917,3]
[348479611,1736560238658,-513.77041324,0.00021917,3]
[348479613,1736560238669,-508.92234598,0.00021917,3]
[348479615,1736560238682,-512.45647977,0.00021917,3]
[348479617,1736560238691,-508.49884548,0.00021917,3]
[348479619,1736560238702,-511.15213442,0.00021917,3]
[348479621,1736560238713,-522.22314361,0.00021917,3]
[348479623,1736560238722,-510.43420569,0.00021917,3]
[348479625,1736560238731,-509.00749846,0.00021917,2]
[348479627,1736560238740,-508.81713527,0.00021917,3]
[348479629,1736560238752,-507.23600582,0.00021917,3]
[348479631,1736560238762,-507.17121423,0.00021917,3]
[348479633,1736560238771,-505.58450192,0.00021917,3]
[348479635,1736560238781,-506.02705751,0.00021917,3]
[348479637,1736560238790,-220.77892967,0.00021917,3]
[348479639,1736560238800,-508.21327612,0.00021917,3]
[348479641,1736560238810,-511.86750635,0.00021917,3]
[348479644,1736560238819,-500.0,0.00021917,3]
[348479646,1736560238829,-500.0,0.00021917,3]
[348479648,1736560238839,-509.52551449,0.00021917,3]
[348479649,1736560238848,-500.0,0.00021917,3]
[348479652,1736560238859,-503.45155198,0.00021917,3]
[348479653,1736560238868,-500.0,0.00021917,3]
[348479655,1736560238878,-506.85794465,0.00021917,3]
[348479658,1736560238887,-500.0,0.00021917,3]
[348479660,1736560238897,-506.04817374,0.00021917,3]
[348479662,1736560238906,-506.51078977,0.00021917,3]
[348479664,1736560238916,-500.0,0.00021917,3]
[348479666,1736560238925,-507.19873845,0.00021917,3]
[348479668,1736560238934,-538.8,0.00021917,3]
[348479669,1736560238944,-503.60644998,0.00021917,2]
[348479671,1736560238954,-500.0,0.00021917,3]
[348479673,1736560238964,-503.5118823,0.00021917,3]
[348479675,1736560238973,-401.71093082,0.00021917,3]
[348479677,1736560238983,-508.04581692,0.00021917,3]
[348479679,1736560238992,-500.0,0.00021917,3]
[348479681,1736560239001,-500.0,0.00021917,3]
[348479683,1736560239010,-515.18600598,0.00021917,3]
[348479685,1736560239020,-500.0,0.00021917,3]
[348479687,1736560239030,-501.18551719,0.00021917,3]
[348479689,1736560239040,-446.93155358,0.00021917,3]
[348479691,1736560239050,-500.0,0.00021917,3]
[348479693,1736560239060,-500.69945452,0.00021917,3]
[348479695,1736560239070,-510.05943516,0.00021917,3]
[348479697,1736560239081,-507.01185774,0.00021917,3]
[348479699,1736560239091,-370.74258882,0.00021917,3]
[348479702,1736560239101,-500.0,0.00021917,3]
[348479704,1736560239112,-506.78523735,0.00021917,3]
[348479705,1736560239122,-500.0,0.00021917,3]
[348479708,1736560239132,-505.77998636,0.00021917,3]
[348479710,1736560239142,-508.12085581,0.00021917,3]
[348479712,1736560239152,-500.0,0.00021917,3]
[348479714,1736560239162,-507.73627975,0.00021917,3]
[348479716,1736560239171,-510.04297381,0.00021917,3]
[348479718,1736560239181,-500.0,0.00021917,3]
[348479720,1736560239190,-505.34928701,0.00021917,3]
[348479722,1736560239200,-516.13988955,0.00021917,3]
[348479724,1736560239209,-632.52390385,0.00021917,3]
[348479725,1736560239218,-508.24354114,0.00021917,3]
[348479727,1736560239229,-500.0,0.00021917,3]
[348479730,1736560239239,-506.21007861,0.00021917,3]
[348479732,1736560239249,-507.36566344,0.00021917,3]
[348479734,1736560239259,-518.55676484,0.00021917,3]
[348479736,1736560239269,-508.68551627,0.00021917,3]
[348479737,1736560239278,-505.23214074,0.00021917,3]
[348479740,1736560239291,-505.29255091,0.00021917,3]
[348479742,1736560239304,-500.0,0.00021917,3]
[348479743,1736560239319,-523.75865147,0.00021917,3]
[348479744,1736560239333,-500.0,0.00021917,3]
[348479745,1736560239346,-506.54380319,0.00021917,3]
[348479746,1736560239358,-500.0,0.00021917,3]
[348479747,1736560239370,-509.16836202,0.00021917,3]
[348479748,1736560239381,-508.22811733,0.00021917,3]
[348479749,1736560239394,-510.4566934,0.00021917,3]
[348479750,1736560239406,-500.0,0.00021917,3]
[348479751,1736560239419,-511.79687378,0.00021917,3]
[348479752,1736560239432,-502.08401511,0.00021917,3]
[348479753,1736560239443,-417.95836171,0.00021917,3]
[348479754,1736560239457,-202.37807576,0.00021917,3]
[348479755,1736560239470,-504.40770252,0.00021917,3]
[348479756,1736560239483,-500.0,0.00021917,3]
[348479757,1736560239497,-501.92340241,0.00021917,3]
[348479758,1736560239510,-504.10329033,0.00021917,3]
[348479759,1736560239522,-502.20328213,0.00021917,3]
[348479761,1736560239535,-506.25607641,0.00021917,3]
[348479763,1736560239547,-502.62151564,0.00021917,3]
[348479765,1736560239559,-506.85197074,0.00021917,3]
[348479767,1736560239570,-503.70755211,0.00021917,3]
[348479769,1736560239580,-504.33941325,0.00021917,3]
[348479771,1736560239591,-500.0,0.00021917,3]
[348479773,1736560239602,-509.24142366,0.00021917,3]
[348479775,1736560239614,-502.81108136,0.00021917,3]
[348479778,1736560239626,-508.84620393,0.00021917,3]
[348479780,1736560239640,-504.87679572,0.00021917,3]
[348479782,1736560239653,-501.75694823,0.00021917,3]
[348479785,1736560239666,-505.06174133,0.00021917,3]
[348479787,1736560239680,-500.0,0.00021917,3]
[348479789,1736560239691,-505.666825,0.00021917,3]
[348479791,1736560239704,-502.02541802,0.00021917,3]
[348479794,1736560239717,-506.85682833,0.00021917,3]
[348479796,1736560239729,-486.23186549,0.00021917,3]
[348479798,1736560239741,-514.67487567,0.00021917,3]
[348479801,1736560239753,-507.3247705,0.00021917,3]
[348479803,1736560239765,-528.75,0.00021917,3]
[348479805,1736560239776,-510.83421535,0.00021917,3]
[348479807,1736560239787,-505.75157198,0.00021917,3]
[348479809,1736560239799,-503.35,0.00021917,3]
[348479811,1736560239809,-500.0,0.00021917,3]
[348479814,1736560239823,-508.61622161,0.00021917,3]
[348479816,1736560239835,-506.07905681,0.00021917,3]
[348479820,1736560239860,-506.24388751,0.00021917,3]
[348479823,1736560239880,-517.40050665,0.00021917,3]
[348479825,1736560239896,-512.04039844,0.00021917,3]
[348479827,1736560239910,-607.22,0.00021917,3]
[348479830,1736560239923,-201.3360077,0.00021917,3]
[348479832,1736560239935,-570.58161398,0.00021917,3]
[348479834,1736560239948,-507.25371349,0.00021917,3]
[348479836,1736560239960,-516.92,0.00021917,3]
[348479839,1736560239972,-514.6245282,0.00021917,3]
[348479841,1736560239984,-503.05585774,0.00021917,3]
[348479843,1736560239996,-503.78440881,0.00021917,3]
[348479846,1736560240010,-500.0,0.00021917,3]
[348479848,1736560240025,-504.84533552,0.00021917,3]
[348479851,1736560240039,-500.0,0.00021917,3]
[348479853,1736560240056,-560.20712629,0.00021917,3]
[348479857,1736560240069,-505.24191263,0.00021917,3]
[348479859,1736560240082,-505.13872212,0.00021917,3]
[348479861,1736560240095,-504.8321864,0.00021917,3]
[348479864,1736560240106,-505.10812779,0.00021917,3]
[348479866,1736560240116,-506.05982201,0.00021917,3]
[348479868,1736560240126,-504.58440664,0.00021917,3]
[348479870,1736560240138,-505.62546322,0.00021917,3]
[348479872,1736560240150,-652.09,0.00021917,3]
[348479874,1736560240160,-506.52851354,0.00021917,3]
[348479877,1736560240173,-509.95329153,0.00021917,3]
[348479879,1736560240187,-504.27728467,0.00021917,3]
[348479882,1736560240202,-506.51789656,0.00021917,3]
[348479884,1736560240215,-500.0,0.00021917,2]
[348479886,1736560240225,-506.60767803,0.00021917,3]
[348479888,1736560240236,-503.77852778,0.00021917,3]
[348479890,1736560240247,-509.56072973,0.00021917,3]
[348479893,1736560240258,-507.27469778,0.00021917,3]
[348479895,1736560240269,-505.5294828,0.00021917,3]
[348479897,1736560240280,-500.0,0.00021917,3]
[348479899,1736560240292,-500.0,0.00021917,2]
[348479901,1736560240306,-1790.24,0.00021917,3]
[348479904,1736560240319,-500.0,0.00021917,3]
[348479906,1736560240333,-505.71368528,0.00021917,3]
[348479908,1736560240345,-500.0,0.00021917,3]
[348479910,1736560240358,-506.48053027,0.00021917,3]
[348479912,1736560240369,-354.60564429,0.00021917,3]
[348479915,1736560240380,-500.0,0.00021917,3]
[348479917,1736560240391,-3583.8,0.00021917,3]
[348479919,1736560240402,-666.45,0.00021917,3]
[348479921,1736560240414,-505.79968252,0.00021917,3]
[348479923,1736560240426,-630.54,0.00021917,3]
[348479925,1736560240437,-500.0,0.00021917,3]
[348479927,1736560240448,-512.13791815,0.00021917,3]
[348479929,1736560240460,-509.99219198,0.00021917,3]
[348479932,1736560240472,-515.59490304,0.00021917,3]
[348479934,1736560240484,-504.3688149,0.00021917,3]
[348479936,1736560240496,-506.31039171,0.00021917,3]
[348479938,1736560240509,-514.67984221,0.00021917,3]
[348479941,1736560240520,-506.95528397,0.00021917,3]
[348479943,1736560240532,-501.97331605,0.00021917,3]
[348479945,1736560240543,-509.61580274,0.00021917,3]
[348479947,1736560240557,-505.45300061,0.00021917,3]